[Event "Silver Lake Festival 2022"]
[Site "Veliko Gradiste"]
[Date "2022.06.22"]
[Round "5.10"]
[White "Govedarica, Radovan"]
[Black "Papaioannou, Dimitrios"]
[Result "0-1"]
[ECO "D01"]
[WhiteElo "2289"]
[BlackElo "2078"]
[Annotator "TA"]
[PlyCount "106"]
[EventDate "2022.06.16"]
[EventType "swiss"]
[EventCountry "SRB"]
[SourceTitle "playchess.com"]
[Source "ChessBase"]
[SourceQuality "1"]
[TimeControl "5400+30"]

{[%evp 14,106,-5,-16,30,15,31,27,31,15,53,55,55,59,68,0,0,-2,120,104,275,-30,-7,-16,0,0,0,-20,0,0,0,-6,58,50,98,0,0,0,0,-10,-24,-78,70,-19,-23,-168,0,-70,-54,-253,-258,-497,-229,-427,-431,-394,-394,-377,0,-511,-370,-661,-388,-380,-371,-364,-343,-360,-304,-644,-439,-1123,-1078,-29989,-617,-608,-588,-593,-587,-568,-556,-633,-558,-515,-521,-747,-726,-937,-387,-1053,-1039,-1031,-965,-714,183]} 1. d4 d5 2. Nc3 Nf6 3. Bg5 Nbd7 4. Qd3 e6 5. e4 dxe4 6. Nxe4 Be7 7. Nxf6+ Nxf6 8. Nf3 Qd5 {D01: Veresov Opening.} (8... O-O {was preferrable.}) 9. Be2 $11 {[#]} O-O $146 ({Predecessor:} 9... Bd7 10. c4 Qa5+ 11. Bd2 Bb4 12. O-O Bxd2 13. Nxd2 Bc6 14. Nb3 Qg5 15. Bf3 Bxf3 16. Qxf3 {0-1 (64) Nataf,I (2592)-Vaisser,A (2568) Besancon 2006}) 10. O-O Rd8 {White has an edge.} 11. Rfd1 Qd6 12. Ne5 Nd5 13. Bxe7 Nxe7 14. Nxf7 Kxf7 15. Qxh7 Ke8 (15... Qf4 $11) 16. Qxg7 $16 Kd7 $2 (16... c6 $16) 17. Qe5 $2 (17. d5 $1 $18 {[%cal Rd5e6] Threatens to win with dxe6+.} exd5 18. Rxd5 $3 {[%mdl 512]} Qxd5 19. Rd1 Qxd1+ 20. Bxd1) 17... Rg8 18. g3 b6 19. Bf3 {Against Bb7} c6 20. Bg2 Ba6 21. b3 Raf8 22. c4 Ng6 (22... Qxe5 $11 23. dxe5+ Kc7) 23. Qe4 Rf6 (23... Bb7 $14) 24. d5 (24. c5 $16 Qd5 25. Qc2) 24... exd5 $1 $11 25. cxd5 c5 26. Qa4+ b5 {[%cal Bb6b5,Bb5b4][%mdl 32] Dancing on a razor blade.} 27. Qa5 {[#]} (27. Qe4 $11 {remains equal.}) 27... Ne5 (27... Nh4 $1 $17 {[%cal Rh4g2]} 28. Bh1 (28. Bh3+ Ke8 $17) 28... Nf5) 28. Qc3 (28. Re1 $1 $14 Rh6 29. Qc3) 28... b4 29. Qe3 (29. Qc2 $1 $11 Rh8 30. a3) 29... Kc7 $2 ({Better is} 29... Re8 $1 $19 {[%cal Oe5f3] Hoping for ...Nf3+!} 30. f4 Ng4 31. Qe6+ Rexe6 32. dxe6+ Rxe6 33. Rxd6+ Rxd6) 30. Rac1 (30. a3 $1 $11 Ng4 31. Qe4) 30... Kb6 $36 {[%mdl 2048] Black has some pressure. Black is much more active.} 31. h3 {[#] Against Ng4} ({White must play} 31. a4 $1 $15 bxa3 32. h3 (32. b4 Nc4 $15)) 31... Re8 $1 $19 {[%cal Oe5f3,Bg8e8,Be8e5,Be5e3,Be3f3][%mdl 32] aiming for ...Nf3+!} 32. Qg5 $2 (32. f4 Rff8 33. fxe5 Rxe5 34. Be4 (34. Qd2 $2 Re2 $19)) 32... Rg6 (32... Be2 $142 33. Rd2 Nd3) 33. Qh5 $2 (33. Qe3 {is a better defense.} Bb5 34. Be4) 33... Nd3 34. Rc2 Re5 35. Qh8 Ne1 $2 (35... Rf6 $19 {And now ...Bb5 would win.} 36. h4 Bb5) 36. Rcd2 $2 {[%mdl 8192]} (36. Rxc5 $1 $11 Kxc5 37. Rc1+ Kb5 38. Rc6) 36... Bb7 37. Bh1 $2 {[#]} (37. Qh4 Rh6 38. Qc4) 37... Re3 $3 {[%cal Og6g3][%mdl 512]} 38. Qh4 Nf3+ 39. Bxf3 Rxf3 40. Rd3 Rf5 41. Qh7 $2 (41. g4) 41... Rgf6 42. Re1 (42. R3d2 $142 Qf8 43. h4 (43. f4 $2 Rh6 $19)) 42... Rxf2 {[%cal Od6e5] ( -> ...Qe5!)} 43. Qg7 Qe5 44. Qxf6+ Qxf6 45. Re6+ {[%emt 0:22:28] [#]} Qxe6 $3 {[%emt 0:22:39]} 46. dxe6 {[%emt 0:00:30][%mdl 4096] Endgame KRB-KR} Re2 {[%emt 0:00:30]} 47. g4 {[%emt 0:00:30]} Rxe6 {[%emt 0:00:30] White must now prevent ...Re2.} 48. Kf2 {[%emt 0:00:30]} a5 {[%emt 0:00:30][%cal Oc5c4,Ba7a5,Ba5a4][%mdl 32]} 49. g5 {[%emt 0:00:30]} a4 {[%emt 0:00:30]} 50. h4 {[%emt 0:00:30]} Ba6 {[%emt 0:00:30]} 51. Rd2 {[%emt 0:00:30]} (51. Re3 Rg6 52. Re5) 51... c4 {[%emt 0:00:30] Black is clearly winning.} 52. bxc4 {[%emt 0:00:30]} Bxc4 {[%emt 0:00:30]} 53. Kf3 {[%emt 0:00:30]} Re2 $4 {[%emt 0:00:30][%mdl 40960] What a bad dream for White.  Weighted Error Value: White=1.09/Black=0.70. Loss on time!?} 0-1

[Event "Silver Lake Festival 2022"]
[Site "Veliko Gradiste"]
[Date "2022.06.22"]
[Round "5.11"]
[White "Arias Gaviria, Mario Alexis"]
[Black "Manish Anto Cristiano F"]
[Result "0-1"]
[ECO "D02"]
[WhiteElo "2181"]
[BlackElo "2071"]
[Annotator "TA"]
[PlyCount "130"]
[EventDate "2022.06.16"]
[EventType "swiss"]
[EventCountry "SRB"]
[SourceTitle "playchess.com"]
[Source "ChessBase"]
[SourceQuality "1"]
[TimeControl "5400+30"]

{[%evp 10,130,6,-18,4,0,12,0,0,9,0,0,0,0,0,0,0,5,19,3,36,33,31,31,32,29,55,51,54,57,60,39,37,29,39,46,39,39,47,27,28,22,56,68,88,46,62,28,27,0,0,0,40,33,40,38,26,-97,35,43,5261,0,0,0,0,-150,-140,-6127,-12799,-4132,-1873,-29978,-29977,-29977,-29978,-29975,-1138,-1098,-1137,-29977,-29978,-29977,-29962,-29977,-29978,-29978,-29974,-29971,-29973,-29975,-29976,-29976,-29976,-29976,-29977,-29981,-29981,-29981,-29981,-29981,-29982,-29982,-29983,-29985,-29986,-29986,-29987,-29988,-29989,-29989,-29990,-29990,-29991,-29992,-29993,-29993,-29994,-29994,-29995,-29995,-29996,-29998,-29999]} 1. d4 {[%emt 0:07:20]} d5 {[%emt 0:00:08]} 2. Nf3 {[%emt 0:00:05]} Nf6 {[%emt 0:00:14]} 3. g3 {[%emt 0:00:02]} Bf5 {[%emt 0:00:35]} 4. Bg2 {[%emt 0:00:12]} e6 {[%emt 0:00:11]} 5. O-O {[%emt 0:00:04]} Be7 {[%emt 0:00:45]} 6. b3 {[%emt 0:01:52]} O-O {[%emt 0:00:15] D02: 1 d4 d5 2 Nf3 sidelines, including 2...Nf6 3 g3 and 2...Nf6 3 Bf4.} 7. Bb2 {[%emt 0:00:02]} c5 {[%emt 0:03:04]} 8. Nbd2 {[%emt 0:01:00]} Nc6 {[%emt 0:01:10] The position is equal.} 9. dxc5 {[%emt 0:01:18]} Bxc5 {[%emt 0:01:21]} 10. Nh4 {[%emt 0:00:04]} Bg4 {[%emt 0:00:54] [#]} 11. h3 $146 {[%emt 0:00:43]} ({Predecessor:} 11. Kh1 e5 12. h3 Be6 13. e3 Qd7 14. Kh2 d4 15. Qe2 dxe3 16. fxe3 Nd5 17. Ne4 {1-0 (48) Baranek,J (2240)-Alaxa,M (2035) Slovakia 2002}) 11... Bh5 {[%emt 0:00:15]} 12. g4 {[%emt 0:02:04]} Bg6 {[%emt 0:17:02]} 13. Nxg6 {[%emt 0:00:20]} hxg6 {[%emt 0:01:56]} 14. c4 {[%emt 0:04:00]} Bd4 {[%emt 0:04:00]} 15. Bxd4 {[%emt 0:01:24]} Nxd4 {[%emt 0:03:04]} 16. e3 {[%emt 0:00:25]} Nc6 {[%emt 0:00:21]} 17. g5 {[%emt 0:10:25]} Nh5 {[%emt 0:13:07]} 18. cxd5 {[%emt 0:00:41]} exd5 {[%emt 0:00:02]} 19. Nf3 {[%emt 0:00:14]} Qd6 {[%emt 0:10:28]} 20. Rc1 {[%emt 0:07:28]} Rad8 {[%emt 0:02:04]} 21. Nd4 {[%emt 0:07:25]} Qe5 {[%emt 0:00:46]} 22. Rxc6 {[%emt 0:07:21]} bxc6 {[%emt 0:00:15]} 23. Nxc6 {[%emt 0:00:04]} Qxg5 {[%emt 0:00:58]} 24. Nxd8 {[%emt 0:00:02]} Rxd8 {[%emt 0:00:16]} 25. Qd4 {[%emt 0:00:05]} Rd7 {[%emt 0:03:07]} 26. Rc1 {[%emt 0:04:38]} Nf6 {[%emt 0:00:19]} 27. Rc8+ {[%emt 0:00:49]} Kh7 {[%emt 0:00:01]} 28. Qc5 {[%emt 0:12:17]} Qf5 {[%emt 0:04:07]} 29. Qb5 {[%emt 0:25:18]} Qb1+ {[%emt 0:04:12]} 30. Bf1 {[%emt 0:02:53]} Qxa2 {[%emt 0:00:35][%cal Of6e4]} 31. Qb8 {[%emt 0:00:19][%csl Gb8][%cal Rc8h8] [#]} g5 {[%emt 0:00:31]} 32. h4 {[%emt 0:04:50]} Ne4 {[%emt 0:00:50]} (32... gxh4 33. Rh8+ Kg6 34. Rxh4 $16 (34. Qh2 Qa1 $16)) 33. Rh8+ {[%emt 0:00:36]} Kg6 {[%emt 0:00:02] Chess con chili.} 34. Qh2 {[%emt 0:00:07]} Qxb3 $2 {[%emt 0:09:07][%mdl 8192]} (34... Qd2 $14) 35. h5+ $2 {[%emt 0:00:47]} ({Less strong is} 35. hxg5 Nxg5 36. Qh5+ (36. Be2 Qb1+ 37. Kg2 Qe4+ 38. Kf1 Ne6 $17) 36... Kf6 $16) (35. Qe5 $18 {[%csl Gh8][%cal Rh4h5]} Qd1 36. h5+ Qxh5 37. Rxh5 Kxh5 38. Qxg7) 35... Kf6 $11 {[%emt 0:00:25]} 36. h6 {[%emt 0:00:14] [#] Intending hxg7 and mate.} Qd1 $1 {[%emt 0:02:37] White must now prevent ...Nd2.} (36... Nd2 37. Qh3 Rd6 38. hxg7 Nf3+ 39. Kg2 Kxg7 40. Qh7+ (40. Qxf3 Kxh8 41. Qxf7 Qb8 $17) (40. Kxf3 g4+ 41. Kxg4 Rg6+ 42. Kf3 Qd1+ 43. Be2 Rf6+ 44. Kg2 Rg6+ 45. Kf3 Rf6+ 46. Kg2 Rg6+ 47. Kf3 $11) 40... Kf6 41. Qh6+ Ke5 42. Qg7+ f6 43. Kxf3 Qd1+ 44. Be2 $18) 37. Qh3 {[%emt 0:00:59] White is now going downhill.} (37. hxg7 $11 Qg4+ 38. Bg2 Qd1+ 39. Bf1 Qg4+ 40. Bg2 Qd1+ 41. Bf1) 37... g4 $17 {[%emt 0:01:05]} 38. hxg7 $4 {[%emt 0:00:29][%mdl 8192]} (38. Qh4+ $17 g5 39. Rg8) 38... gxh3 $19 {[%emt 0:00:08]} 39. g8=Q {[%emt 0:00:05]} Qf3 {[%emt 0:00:16]} (39... Qe1 $142 40. Rxh3 Qxf2+ 41. Kh1 Qxf1+ 42. Kh2 Ke7) 40. Rh6+ {[%emt 0:00:42]} Ke7 {[%emt 0:00:06]} 41. Bg2 {[%emt 0:00:46]} Qxf2+ {[%emt 0:00:09]} 42. Kh2 {[%emt 0:00:02]} Qxg2+ {[%emt 0:00:11]} (42... hxg2 $142 43. Qxg2 Qxe3 44. Rh3 Qf4+ 45. Kg1 Rd6 46. Rf3 Qc1+ 47. Kh2 Rh6+ 48. Rh3 Rb6 49. Rf3 Rb2 50. Qxb2 Qxb2+ 51. Kg1 Qd4+ 52. Kh2 Qd2+ 53. Kg1 Qd1+ 54. Rf1 Qe2 55. Rf4 Qe3+ 56. Kg2 Qxf4 57. Kh1 Qf3+ 58. Kh2 Qg3+ 59. Kh1 Nf2#) 43. Qxg2 {[%emt 0:00:03]} hxg2 {[%emt 0:00:08]} 44. Kxg2 {[%emt 0:00:03][%mdl 4096] Endgame KRN-KR} Rd6 {[%emt 0:00:18] Black mates.} 45. Rh8 {[%emt 0:00:03]} Ra6 {[%emt 0:00:29]} 46. Kf3 {[%emt 0:00:05]} Ra2 {[%emt 0:00:13]} 47. Kf4 {[%emt 0:00:06]} Ke6 {[%emt 0:00:06]} 48. Re8+ {[%emt 0:00:04]} Kf6 {[%emt 0:00:07]} 49. Ra8 {[%emt 0:00:08]} Rf2+ {[%emt 0:01:24]} 50. Kg4 {[%emt 0:00:03]} Kg6 {[%emt 0:00:18]} 51. Rg8+ {[%emt 0:01:54]} Kh7 {[%emt 0:00:08]} 52. Ra8 {[%emt 0:00:04]} f5+ {[%emt 0:02:06]} 53. Kh3 {[%emt 0:00:05]} Rf3+ {[%emt 0:01:06]} 54. Kh4 {[%emt 0:00:16]} Rxe3 {[%emt 0:00:20]} 55. Rxa7+ {[%emt 0:00:03]} Kg6 {[%emt 0:00:07]} 56. Ra5 {[%emt 0:01:53]} Re1 {[%emt 0:00:13][%cal Re1h1]} 57. Ra6+ {[%emt 0:00:16]} Kf7 {[%emt 0:00:16][%cal Re1h1]} 58. Kh3 {[%emt 0:00:09]} d4 {[%emt 0:00:07]} 59. Ra7+ {[%emt 0:00:50]} Ke6 {[%emt 0:00:09]} 60. Ra6+ {[%emt 0:00:04]} Ke5 {[%emt 0:00:08]} 61. Ra5+ {[%emt 0:00:18]} Kf4 {[%emt 0:00:15]} 62. Rd5 {[%emt 0:00:32]} d3 {[%emt 0:00:43]} 63. Kh2 {[%emt 0:01:26]} d2 {[%emt 0:00:10]} 64. Rd3 {[%emt 0:03:01]} d1=Q {[%emt 0:01:07]} 65. Rf3+ {[%emt 0:00:30]} Kxf3 {[%emt 0:00:32] Weighted Error Value: White=0.63/Black=0.50} 0-1

[Event "Silver Lake Festival 2022"]
[Site "Veliko Gradiste"]
[Date "2022.06.22"]
[Round "5.12"]
[White "Maksimovic, Branimir"]
[Black "Mamedov, Edgar"]
[Result "0-1"]
[ECO "A11"]
[WhiteElo "2247"]
[BlackElo "2004"]
[Annotator "TA"]
[PlyCount "90"]
[EventDate "2022.06.16"]
[EventType "swiss"]
[EventCountry "SRB"]
[SourceTitle "playchess.com"]
[Source "ChessBase"]
[SourceQuality "1"]
[TimeControl "5400+30"]

{[%evp 14,90,4,0,17,-107,-113,-99,-76,-152,-114,-166,-166,-149,-90,-102,-108,-156,-133,-160,-162,-152,-120,-119,-123,-272,-286,-324,-360,-403,-403,-409,-313,-364,-360,-341,-289,-325,-345,-392,-381,-491,-378,-566,-567,-551,-486,-735,-739,-714,-718,-768,-754,-806,-781,-987,-990,-969,-975,-959,-963,-929,-766,-750,-729,-691,-637,-642,-634,-663,-579,-2192,-2176,-2144,-1187,-5185,-5185,-29980,-29981]} 1. Nf3 {[%emt 0:00:08]} d5 {[%emt 0:00:13]} 2. e3 {[%emt 0:00:04]} Nf6 {[%emt 0:00:19]} 3. c4 {[%emt 0:00:11]} c6 {[%emt 0:00:46]} 4. Nc3 {[%emt 0:00:27]} e6 {[%emt 0:00:58]} 5. b3 {[%emt 0:00:24]} Nbd7 {[%emt 0:00:54]} 6. Qc2 {[%emt 0:01:10]} Bd6 {[%emt 0:00:51]} 7. Bb2 {[%emt 0:00:13]} O-O {[%emt 0:01:09]} 8. Be2 {[%emt 0:01:02]} a6 {[%emt 0:09:50] A11: English Opening: 1...c6.} 9. g4 {[%emt 0:03:07]} (9. d4 $11) 9... Nxg4 $17 {[%emt 0:02:50]} 10. Rg1 {[%emt 0:00:04]} f5 {[%emt 0:05:20] [#] Black is more active. Black is better.} 11. Nd4 $146 {[%emt 0:03:36]} (11. O-O-O $142) ({Predecessor:} 11. h3 Ngf6 12. O-O-O Qe7 13. Kb1 b5 14. d3 Nb6 15. Rc1 bxc4 16. dxc4 dxc4 17. bxc4 {½-½ (41) Jakubiec,A (2535)-Skawinski,A (2300) Szczyrk 2014}) 11... Ndf6 {[%emt 0:13:35][%cal Og4f2]} (11... Bxh2 12. Nxe6 Qe8 13. Rxg4 fxg4 14. Nxf8 Qxf8 15. O-O-O $11) 12. cxd5 {[%emt 0:01:45]} (12. h3 $17 Ne5 13. Na4 (13. f4 Ng6 $15)) 12... cxd5 $19 {[%emt 0:03:55]} ({Don't play} 12... Bxh2 $6 13. Rg2 cxd5 14. f3 $11) 13. h3 {[%emt 0:00:55]} Nh6 {[%emt 0:01:37]} (13... Ne5 $142 14. f4 Ng6) 14. f4 $17 {[%emt 0:00:12]} Bd7 {[%emt 0:07:04]} 15. a3 {[%emt 0:00:05]} (15. Qd3 $142) 15... Qe7 {[%emt 0:02:07]} 16. b4 {[%emt 0:00:24]} Rac8 {[%emt 0:04:18]} 17. Qb3 {[%emt 0:00:20]} b5 {[%emt 0:01:48]} 18. Nf3 {[%emt 0:04:35]} Nf7 {[%emt 0:03:57][%cal Bh6f7,Bf7d8,Bd8c6][%mdl 32]} 19. Nd1 {[%emt 0:00:08] This move loses the game for White.} (19. a4 $17 {was necessary.}) 19... e5 $19 {[%emt 0:01:12]} 20. Nf2 {[%emt 0:10:06]} exf4 {[%emt 0:02:29]} 21. Nd3 {[%emt 0:00:28]} fxe3 {[%emt 0:00:41]} 22. dxe3 {[%emt 0:00:26]} Nd8 {[%emt 0:12:28]} 23. Nf4 {[%emt 0:07:38]} Bxf4 {[%emt 0:10:35]} 24. exf4 {[%emt 0:00:04]} Rc4 {[%emt 0:00:34] [#] Strongly threatening ...Re4.} 25. Be5 {[%emt 0:02:04]} Re4 {[%emt 0:01:42]} 26. Rd1 {[%emt 0:36:30]} Nc6 {[%emt 0:01:53][%cal Rc6e5]} ({Wrong is} 26... Ne6 $2 27. Rxd5 Kh8 28. Rd3) 27. Kf1 {[%emt 0:02:29]} Be6 {[%emt 0:03:46]} ({Don't go for} 27... Rxe5 $2 28. fxe5 Nxe5 29. Nxe5 Qxe5 30. Qg3 $17) 28. Qc3 {[%emt 0:01:33]} (28. Nd4 $142 Nxe5 29. fxe5 Rf4+ 30. Bf3) 28... Nxe5 {[%emt 0:00:18]} 29. fxe5 {[%emt 0:00:10]} Ng4 {[%emt 0:01:03]} 30. Rc1 {[%emt 0:01:10]} (30. Rd3 $142 Rc8 31. Qd2 Nxe5 32. Nxe5 Rxe5 33. Qg5 Qxg5 34. Rxg5) 30... Ne3+ {[%emt 0:01:05]} 31. Kf2 {[%emt 0:00:10]} Nc4 {[%emt 0:01:09]} 32. Bxc4 {[%emt 0:01:15]} bxc4 {[%emt 0:00:49]} 33. Rcd1 {[%emt 0:00:47]} f4 {[%emt 0:00:46] ...Qa7+ is the strong threat.} 34. Ng5 {[%emt 0:01:57]} Re3 {[%emt 0:00:57]} 35. Qd4 {[%emt 0:00:03]} h6 {[%emt 0:00:48]} 36. Nf3 {[%emt 0:00:43]} Rxa3 {[%emt 0:00:29] aiming for ...Qf7.} 37. Rg6 {[%emt 0:01:16]} Ra2+ {[%emt 0:00:39]} 38. Rd2 {[%emt 0:00:51]} Rxd2+ {[%emt 0:00:19]} 39. Qxd2 {[%emt 0:00:02]} Kh7 {[%emt 0:00:59]} 40. Rg1 {[%emt 0:00:31]} Qf7 {[%emt 0:00:55]} 41. Ra1 {[%emt 0:02:03]} Qh5 {[%emt 0:01:20]} 42. Rxa6 {[%emt 0:00:06]} Qxh3 {[%emt 0:00:25] [#] White must now prevent ...Qg3+.} 43. Rxe6 {[%emt 0:03:49]} Qxe6 {[%emt 0:00:13]} 44. Qd4 {[%emt 0:00:04]} Qg6 {[%emt 0:00:58] ( -> ...Ra8)} 45. Qxd5 {[%emt 0:00:21]} c3 {[%emt 0:00:17] Weighted Error Value: White=0.63/Black=0.21 (precise)} 0-1

[Event "Silver Lake Festival 2022"]
[Site "Veliko Gradiste"]
[Date "2022.06.23"]
[Round "6.1"]
[White "Stremavicius, Titas"]
[Black "Sadikhov, Ulvi"]
[Result "1/2-1/2"]
[ECO "C41"]
[WhiteElo "2508"]
[BlackElo "2491"]
[Annotator "TA"]
[PlyCount "62"]
[EventDate "2022.06.16"]
[EventType "swiss"]
[EventCountry "SRB"]
[SourceTitle "playchess.com"]
[Source "ChessBase"]
[SourceQuality "1"]
[TimeControl "5400+30"]

{[%evp 9,62,39,30,19,36,18,20,20,19,14,24,23,41,27,20,26,8,-15,0,0,0,0,0,0,0,0,0,0,0,0,0,-10,-12,-40,-29,-41,-40,-33,-28,-40,-37,-37,-37,-38,-38,-49,-53,-66,-60,-66,-31,-31,-31,-31,-31]} 1. d4 {[%emt 0:00:10]} d6 {[%emt 0:00:54]} 2. e4 {[%emt 0:00:14]} Nf6 {[%emt 0:00:58]} 3. Nc3 {[%emt 0:00:10]} e5 {[%emt 0:00:08]} 4. Nf3 {[%emt 0:00:08]} Nbd7 {[%emt 0:00:20]} 5. a4 {[%emt 0:00:13]} Be7 {[%emt 0:02:51][%cal Bf8e7,Be7f6,Bf6e5][%mdl 32]} 6. a5 {[%emt 0:00:09] C41: Philidor Defence.} O-O {[%emt 0:01:15]} 7. Bc4 {[%emt 0:00:13]} exd4 {[%emt 0:04:31]} 8. Qxd4 {[%emt 0:00:20] The position is equal.} Ng4 {[%emt 0:04:55]} 9. O-O {[%emt 0:01:19]} Bf6 {[%emt 0:05:53]} 10. Qd1 {[%emt 0:00:18] [#]} Nc5 $146 {[%emt 0:10:49]} ({Predecessor:} 10... Nge5 11. Nxe5 Nxe5 12. Bb3 Kh8 13. Nd5 c6 14. Ne3 Qc7 15. f4 Ng6 16. c3 Re8 {1-0 (42) Amate Tortosa,B (2179)-Remoli Sargues,F (2039) Cullera 2004}) 11. Re1 {[%emt 0:05:01]} Re8 {[%emt 0:07:19]} 12. h3 {[%emt 0:20:26]} (12. Qd5 $2 Be6 13. Qh5 g6 $19) 12... Ne5 {[%emt 0:03:03]} 13. Be2 {[%emt 0:18:48]} Nxf3+ {[%emt 0:03:15]} 14. Bxf3 {[%emt 0:02:49]} Be5 {[%emt 0:01:07]} 15. Nd5 {[%emt 0:01:55]} c6 {[%emt 0:02:04]} 16. Nb4 {[%emt 0:03:49]} Qf6 {[%emt 0:04:49]} 17. Nd3 {[%emt 0:03:31]} Nxd3 {[%emt 0:00:20]} 18. Qxd3 {[%emt 0:00:07]} Be6 {[%emt 0:05:47]} 19. c3 {[%emt 0:00:31]} Rad8 {[%emt 0:05:02]} 20. a6 {[%emt 0:01:39]} b6 {[%emt 0:02:00]} 21. Be3 {[%emt 0:08:07] [#]} Bxh3 $1 {[%emt 0:05:49]} 22. Bxb6 $1 {[%emt 0:00:06]} axb6 {[%emt 0:00:11]} 23. gxh3 {[%emt 0:00:01]} Qf4 {[%emt 0:01:00]} 24. Kf1 {[%emt 0:00:50]} Ra8 {[%emt 0:01:08] Black is slightly better.} 25. Qe3 {[%emt 0:02:12]} Qxe3 {[%emt 0:01:24]} 26. Rxe3 {[%emt 0:01:05]} Ra7 {[%emt 0:00:23]} 27. Be2 {[%emt 0:00:47]} Rea8 {[%emt 0:01:25]} ({But not} 27... Bf4 28. Rf3 Be5 29. b4 $11) 28. Ra2 {[%emt 0:00:08]} b5 {[%emt 0:02:35]} 29. c4 {[%emt 0:00:09]} Rxa6 {[%emt 0:00:29]} 30. Rxa6 {[%emt 0:00:11]} Rxa6 {[%emt 0:00:02]} 31. cxb5 {[%emt 0:00:25]} cxb5 {[%emt 0:00:16] Weighted Error Value: White=0.07 (flawless) /Black=0.03 (flawless)} 1/2-1/2